Cogmind - Beta 15 @@@ ROGUE MODE // 2025.09.18 @ 23:32:07 Player: cottonman132 Result: Destroyed by TV-OEK(R) with Subdweller Laser Performance ------------- Evolutions (0) 0 Regions Visited (2) 400 Robots Destroyed (19) 95 Value Destroyed (408) 408 Prototype IDs (0) 0 Alien Tech Used (0) 0 Bonus (0) 0 TOTAL SCORE: 903 Bonus ------- None Cogmind --------- Core Integrity 0/250 Matter 300/300 Energy 160/160 System Corruption 0% Temperature Hot (217) Movement Rolling (150) Ox4 Location -10/Subcaves Parts ------- > --- POWER (1) -------- Light Nuclear Core > --- PROPULSION (2) --- Subdweller Monowheel > --- UTILITY (2) ------ Huge Storage Unit > --- WEAPON (2) ------- Hammer Mace > --- INVENTORY (25) --- Aluminum Leg Aluminum Leg Improved Heat Sink Subdweller Optics Light Armor Plating Light Armor Plating Scrap Shield Subdweller Beam Cannon Battle Rifle Peak State ------------ > --- POWER ------------ Light Nuclear Core > --- PROPULSION ------- Aluminum Leg Subdweller Monowheel > --- UTILITY ---------- Medium Storage Unit Light Armor Plating > --- WEAPON ----------- Hammer Mace > --- INVENTORY -------- Aluminum Leg Aluminum Leg Improved Heat Sink Huge Storage Unit Subdweller Optics Light Armor Plating Light Armor Plating Scrap Shield Subdweller Beam Cannon [Rating: 12] Favorites ----------- Power Ion Engine Engine Ion Engine Power Core Light Nuclear Core Propulsion Aluminum Leg Treads Light Treads Leg Aluminum Leg Wheel Compact Wheel Utility Medium Storage Unit Device Seismic Detector Storage Medium Storage Unit Protection Light Armor Plating Weapon Hammer Ballistic Gun Assault Rifle Impact Weapon Hammer Build | -11 -10 -10 ------- Run | Yrd Mat Sub Slots Evolved . | . . . Power . | . . . Propulsion . | . . . Utility . | . . . Weapon . | . . . Parts Attached 23 | 7 11 5 Power 3 | 1 1 1 Engine 2 | 1 1 . Core 1 | . . 1 Reactor . | . . . Propulsion 10 | 2 6 2 Treads 2 | . 2 . Leg 3 | . 2 1 Wheel 5 | 2 2 1 Hover . | . . . Flight . | . . . Utility 6 | 2 2 2 Device 1 | 1 . . Storage 3 | 1 1 1 Processor . | . . . Hackware . | . . . Protection 2 | . 1 1 Artifact . | . . . Weapon 4 | 2 2 . Energy Gun . | . . . Energy Cannon . | . . . Ballistic Gun 2 | 2 . . Ballistic Cannon . | . . . Launcher . | . . . Special Weapon . | . . . Impact Weapon 2 | . 2 . Slashing Weapon . | . . . Piercing Weapon . | . . . Special Melee Weapon . | . . . Unidentified Prototypes . | . . . Parts Lost 8 | . 3 5 Power 2 | . 1 1 Propulsion 4 | . 2 2 Utility 2 | . . 2 Weapon . | . . . Highest Loss Streak 2 | . 2 2 To Critical Strikes . | . . . Average Backups 7 | 3 6 8 Power 1 | . 1 . Propulsion 2 | 1 2 1 Utility 3 | . 2 5 Weapon . | . . . Tool/Special . | . . . Unused Backups 9 | . 1 8 Power . | . . . Propulsion 1 | . . 1 Utility 5 | . . 5 Weapon 3 | . 1 2 Tool/Special . | . . . Average Slot Usage (%) 95 | . 92 99 Engine 13 | . 14 11 Leg 18 | . 14 25 Wheel 9 | . 12 2 Device 7 | . 10 . Storage 14 | . 14 14 Protection 6 | . 3 13 Ballistic Gun 6 | . 9 . Impact Weapon 17 | . 11 28 Peak Build Rating 12 | 7 9 12 Average Rating 7 | 5 7 9 On Entrance 5 | . 7 9 Naked Turns . | . . . Heaviest Build 92 | 15 22 92 Greatest Support 40 | 26 40 20 Greatest Overweight (x) 4 | . 1 4 Average Overweight (x) . | . . 1 Largest Inventory Capacity 25 | 8 10 25 Average Capacity 10 | 7 9 12 Most Carried 10 | 7 9 10 Average Carried 7 | 3 6 8 Final Capacity 25 | 8 10 25 Final Carried 10 | 6 8 10 Class Distribution -------------------- 100% | Mutant Dominant Class ---------------- Mutant | -10/Materials Mutant | -10/Subcaves Resources | -11 -10 -10 ----------- Run | Yrd Mat Sub Matter Collected 586 | 312 229 45 Remotely . | . . . Salvage Created 687 | 144 439 104 Parts 26 | 11 13 2 Haulers Intercepted 1 | . 1 . Recyclers Shooed 2 | 1 1 . Parts Field Recycled . | . . . Retrieved Matter . | . . . Parts Self-Destructed . | . . . Prevented . | . . . Kills | -11 -10 -10 ------- Run | Yrd Mat Sub Combat Hostiles Destroyed 11 | . 8 3 Melee 6 | . 4 2 Guns 3 | . 3 . Classes Destroyed 8 | 2 5 1 Worker 1 | . 1 . Tunneler 3 | 3 . . Hauler 1 | . 1 . Recycler 2 | 1 1 . Operator 1 | . 1 . Swarmer 3 | . 3 . Grunt 5 | . 5 . Subdweller 3 | . . 3 Best Kill Streak 4 | 4 2 2 Combat Bots Only 2 | . 2 2 Max Kills in Single Turn 1 | 1 1 1 Gunslinging . | . . . Exploded . | . . . Melee 1 | . 1 1 Uniques/NPCs Destroyed . | . . . Combat | -11 -10 -10 -------- Run | Yrd Mat Sub Hostile Shots Fired 74 | . 45 29 Missed 18 | . 9 9 Hits 56 | . 36 20 Projectile 56 | . 36 20 AOE 3 | . . 3 Critical Strikes 3 | . 2 1 Damage Taken 1003 | . 467 536 Core 260 | . 141 119 Absorbed by Shields . | . . . Core Remaining (%) 100 | 100 . . Volleys Fired 29 | 7 22 . Largest 2 | 2 2 . Hottest 40 | 40 40 . Shots Fired 57 | 14 43 . Gun 57 | 14 43 . Cannon . | . . . Launcher . | . . . Special . | . . . Kinetic 57 | 14 43 . Thermal . | . . . Explosive . | . . . Electromagnetic . | . . . Robot Hit Streak 7 | 7 6 . Robot Miss Streak 6 | 2 6 . Penetration Max . | . . . Secondary Targets . | . . . Shots Hit Robots 62 | 9 43 10 Core Hits 19 | 5 12 2 Critical Kills . | . . . Critical Parts Destroyed 5 | . 3 2 Critical Strikes 5 | . 3 2 Smash 5 | . 3 2 Melee Attacks 47 | . 32 15 Impact 47 | . 32 15 Slashing . | . . . Piercing . | . . . Sneak Attacks 6 | . 6 . Combat Hostiles 1 | . 1 . Follow-up Attacks 1 | . . 1 Damage Inflicted 1519 | 114 1043 362 Guns 381 | 114 267 . Cannons . | . . . Explosions . | . . . Melee 1138 | . 776 362 Ramming . | . . . Kinetic 381 | 114 267 . Thermal . | . . . Explosive . | . . . Electromagnetic . | . . . Impact 1138 | . 776 362 Slashing . | . . . Piercing . | . . . Highest Corruption . | . . . Average Corruption . | . . . Corruption Purged . | . . . Corruption Blocked . | . . . Overload Shots . | . . . Overflow Damage 323 | . 241 82 Projectiles . | . . . Explosions . | . . . Melee 323 | . 241 82 Knockbacks 8 | . 4 4 Impact 8 | . 4 4 Kinetic . | . . . Secondary . | . . . Self-Inflicted Damage . | . . . Shots . | . . . Rammed . | . . . Targets Rammed . | . . . Kicked . | . . . Crushed . | . . . Highest Temperature 247 | . 9 247 Average Temperature 95 | . 6 229 Received Heat Transfer 576 | . 228 348 Siege Activations . | . . . Martial Activations . | . . . Shielding Activations . | . . . Robots Disrupted . | . . . Combat Hostiles . | . . . Robots Corrupted 5 | . 4 1 Combat Hostiles 2 | . 1 1 Parts Fried 8 | . 5 3 Impact Corruptions 11 | . 9 2 Robots Melted . | . . . Combat Hostiles . | . . . Parts Melted . | . . . Heat Transferred . | . . . Parts Sabotaged . | . . . Parts Stolen . | . . . Parts Stripped . | . . . Power Chain Reactions . | . . . Alert | -11 -10 -10 ------- Run | Yrd Mat Sub Maximum Alert Level . | . . . Low Security (%) 100 | 100 100 . Level 1 . | . . . Level 2 . | . . . Level 3 . | . . . Level 4 . | . . . Level 5 . | . . . High Security . | . . . Max Security . | . . . Peak Influence 90 | 10 90 . Initial 3 | . 3 . Average 28 | 2 30 . Influence Increases 349 | 20 329 . Destroy 0b10 Robot/C 160 | . 160 . Destroy 0b10 Robot/NC 40 | 20 20 . Destroy Leader 42 | . 42 . Successful Hack 15 | . 15 . Disable Machine 15 | . 15 . Destroy Structure 2 | . 2 . Lose Combat Pursuer 75 | . 75 . Influence Decreases 349 | 15 290 44 Entered New Map 24 | . 2 22 Time Decay 305 | 15 268 22 Lost Part 20 | . 20 . Squads Dispatched 2 | . 2 . Investigation . | . . . Extermination . | . . . Reinforcement 2 | . 2 . Assault . | . . . Garrison . | . . . Intercept . | . . . Searches Triggered . | . . . Construction Impeded . | . . . Haulers Reinforced . | . . . Active Scanning Responses . | . . . Cargo Convoy Interrupts . | . . . Stealth | -11 -10 -10 --------- Run | Yrd Mat Sub Distress Signals 1 | . 1 . Communications Jammed . | . . . Distress Signals . | . . . Times Spotted 23 | . 18 5 Peak Tracking Total 3 | . 3 2 Tactical Retreats 4 | . 4 . Traps | -11 -10 -10 ------- Run | Yrd Mat Sub Traps Triggered 1 | . 1 . Indirectly . | . . . Trap Hack Attempts . | . . . Triggered . | . . . Disarmed . | . . . Reprogrammed . | . . . Reused . | . . . Traps Extracted . | . . . Installed . | . . . Triggered . | . . . Machines | -11 -10 -10 ---------- Run | Yrd Mat Sub Machines Disabled 1 | . 1 . Max in Single Turn 1 | . 1 . Machines Repaired . | . . . Machines Dismantled . | . . . Machines Sabotaged . | . . . Overloaded Fab Kills . | . . . Hacking | -11 -10 -10 --------- Run | Yrd Mat Sub Machines Accessed 7 | . 7 . Terminals 5 | . 5 . Fabricators . | . . . Repair Stations . | . . . Recycling Units 2 | . 2 . Scanalyzers . | . . . Garrison Access . | . . . Total Hacks 19 | . 19 . Successful 9 | . 9 . Failed 10 | . 10 . Catastrophic 1 | . 1 . Database Lockouts . | . . . Manual . | . . . Terminals 11 | . 11 . Fabricators . | . . . Repair Stations . | . . . Recycling Units 8 | . 8 . Scanalyzers . | . . . Garrison Access . | . . . Terminal Hacks 5 | . 5 . Robot Analysis 2 | . 2 . Hauler Manifests 1 | . 1 . Zone Layout 2 | . 2 . Fabricator Hacks . | . . . Repair Station Hacks . | . . . Recycling Unit Hacks 4 | . 4 . Report Inventory 2 | . 2 . Retrieve Components 2 | . 2 . Scanalyzer . | . . . Garrison Access Hacks . | . . . Unauthorized Hacks . | . . . Terminals . | . . . Fabricators . | . . . Repair Stations . | . . . Recycling Units . | . . . Scanalyzers . | . . . Garrison Access . | . . . Data Cores Recovered . | . . . Used . | . . . Hacking Detections 3 | . 3 . Full Trace Events 1 | . 1 . Feedback Events . | . . . Feedback Blocked . | . . . Robot Schematics Acquired . | . . . Robots Built . | . . . Authchips . | . . . Time . | . . . Total Robot Build Rating . | . . . Part Schematics Acquired . | . . . Parts Built . | . . . Authchips . | . . . Time . | . . . Total Part Build Rating . | . . . Parts Repaired . | . . . Time . | . . . Parts Recycled . | . . . Recycled Matter . | . . . Retrieved Matter . | . . . Retrieved Components 17 | . 17 . Parts Scanalyzed . | . . . Part Schematics Acquired . | . . . Parts Damaged . | . . . Bothacking | -11 -10 -10 ------------ Run | Yrd Mat Sub Used RIF Installer . | . . . Robots Hacked . | . . . Non-combat . | . . . Combat . | . . . Robot Hacks Applied . | . . . Relay Couplers Released . | . . . Fabnet Peak Effective % . | . . . Robots Rewired . | . . . Allies Hacked . | . . . Hacks Repelled . | . . . Allies | -11 -10 -10 -------- Run | Yrd Mat Sub Total Allies . | . . . Largest Group . | . . . Highest-Rated Group . | . . . Highest-Rated Ally . | . . . Total Orders . | . . . Ally Attacks . | . . . Total Damage . | . . . Kills . | . . . Allies Corrupted . | . . . Allies Melted . | . . . Intel | -11 -10 -10 ------- Run | Yrd Mat Sub Active Infowar (turns) 739 | 30 709 . Seismic 739 | 30 709 . Robot Analysis Total 2 | . 2 . Derelict Logs Recovered . | . . . Drone Launches . | . . . Drone Recoveries . | . . . Exploration | -11 -10 -10 ------------- Run | Yrd Mat Sub Turns Passed 1512 | 92 947 473 Spaces Moved 910 | 60 637 213 Core 7 | 7 . . Treads 3 | . 3 . Legs 484 | . 303 181 Wheels 416 | 53 331 32 Hover . | . . . Flight . | . . . Fastest Speed 50 | 50 90 150 Average Speed 128 | 85 114 184 Slowest Speed 260 | 90 190 260 Overloaded Moves . | . . . Propulsion Burnouts . | . . . Robots Hopped . | . . . Potential Cave-ins . | . . . Cave-ins Triggered . | . . . Exploration Rate (%) 41 | 4 98 21 Regions Visited 2 Branch Regions 1 Pre-discovered Areas . | . . . Known Exits Taken . | . . . Unknown Exits Taken 2 | 1 1 . Scrap Searched 4 | . . 4 Spaces Dug 2 | . 2 . Terrain Destroyed 2 | . 2 . Melee 2 | . 2 . Projectile . | . . . AOE . | . . . Terrain Rammed . | . . . Walls Destroyed . | . . . Machines Disabled . | . . . Actions | -11 -10 -10 --------- Run | Yrd Mat Sub Total 1117 | 86 760 271 Wait 71 | . 36 35 Move 908 | 59 636 213 Hop . | . . . Pick Up 32 | 13 14 5 Fast Attach . | . . . Attach 15 | 7 5 3 Detach . | . . . Swap 8 | . 6 2 Drop 10 | . 9 1 Fire 29 | 7 22 . Melee 44 | . 32 12 Ram . | . . . Kick . | . . . Crush . | . . . Escape Stasis . | . . . Rewire . | . . . Trap . | . . . Miscellaneous . | . . . Route ------- -11/Scrapyard -10/Materials (discovered 5 exits: [*Mat x3] / [*Min] / [*Sub]) -10/Subcaves History --------- Turn | Location | Event 10 | -11/Scrapyard | Discovered new exit (range 16) 93 | -11/Scrapyard | Entered Materials 306 | -10/Materials | Discovered new exit (range 12) 314 | -10/Materials | Build established: Mutant 489 | -10/Materials | Discovered new exit (range 9) 650 | -10/Materials | Discovered new exit (range 5) 775 | -10/Materials | Core integrity fell below 50% 875 | -10/Materials | Discovered new exit (range 14) 1021 | -10/Materials | Discovered new exit (range 11) 1040 | -10/Materials | Entered Subcaves 1041 | -10/Subcaves | Approached by a straggling Scientist 1504 | -10/Subcaves | Core integrity fell below 20% 1513 | -10/Subcaves | Destroyed by TV-OEK(R) with Subdweller Laser Last Messages --------------- 01417_ Sub. Power Source fried. 01420_ JZ-A2E(R) knocked back. 01423_ Ion Engine destroyed. 01429_ Lgt. Armor Plating destroyed. 01435_ JZ-A2E(R) destroyed. 01440_ Acquired Scrap Shield. 01441_ Acquired 15 matter. 01445_ Acquired Sub. Monowheel. YY-2NG(c): "I think it's somewhere south of here" 01451_ Dropped Med. Storage Unit. 01451_ Acquired Battle Rifle. 01452_ Acquired 20 matter. YY-2NG(c): "I think it's somewhere southeast of here" 01505_ TV-OEK(R) knocked back. 01511_ Lgt. Armor Plating destroyed. 01511_ Aluminum Leg destroyed. 01511_ Critical hit (Meltdown: +270). 01512_ TV-OEK(R) knocked back. Map ----- +----------------------------------------------------+ | ?????????????????????????????????????????????????? | | ?????????????????????????????????????????????????? | | ?????????????????????????????????????????????????? | | ?????????????????????????????????????????????????? | | ?????????????????????????????????????????????????? | | ?????????????????????????????????????????????????? | | ?????????????????????????????????????????????????? | | ?????????????????????????????????????????????????? | | ?????????????????????????????????????????????????? | | ?????????????????????????????????????????????????? | | ?????????????????????????????????????????????????? | | ?????????????????????????????????????????????????? | | ??????????????????????????????#??????????????????? | | ?????????????????????????????# ??????????????????? | | ????????????????????????????# ???????????????????? | | ???????????????????????????# ???????????????????? | | ?????????????????????????## ??????? ?????????? | | ???????????????????????## ??????? ?????????? | | ????????????????####??## ??????? ????????? | | ????????????????? ### #??????? #????##?? | | ?????????????????? #??????? #?## #?? | | ???????????????????? #???????? ## #?? | | ????????????????????? #????????? #?? | | ?????????????????????? RR #??????????? #?? | | ???????????????????????# ####????????? ##? | | ????????????????????????#@ ### #?????????? ## | | ????????????????????????# # #??????????## # | | ????????????????????????# # #####??????# " | | ???????????????????????## ## ####?#### "" | | ???????????????????????# ##?# ### ## | | ???????????????????????## ### & ### | | ????????????????????????#% ## #?? | | ????????????????????????###c ##### | | ??????????????????????????## ! %[ & | | ???????????????????????????# ##### #%& | | ?????????????????????? % #???### # # | | ?????????????????????# #?????# ###### | | ?????????????????????# ###### #????# #????? | | ??????????????????? %###?????## #???? ????? | | ????????????????? ??????????####??? ???? | | ???????????????? ## ?????????????????? ???? | | ???????????????????#???????????????????# ??? | | ???????????????????????????????????????#########?? | | ?????????????????????????????????????????????????? | | ?????????????????????????????????????????????????? | | ?????????????????????????????????????????????????? | | ?????????????????????????????????????????????????? | | ?????????????????????????????????????????????????? | | ?????????????????????????????????????????????????? | | ?????????????????????????????????????????????????? | +----------------------------------------------------+ Best States ------------- Heat Dissipation 25 Energy Generation 14 Energy Capacity 250 Matter Stores 300 Matter Capacity 300 Sight Range 16 Terrain Scan Density 10 Armor Coverage 150 Evasion (%) 55 Recoil Reduction 2 Item Schematics ----------------- None Robot Schematics ------------------ None Fabricated ------------ Nothing Repaired ---------- Nothing Alien Tech Used ----------------- None Achievements -------------- None Challenges ------------ None Game ------ Seed SeismicStorageMaul Manual? 0 Play Time 00:13:52 Cumulative 13.9 hours Start 2025.09.18 @ 23:20:46 End 2025.09.18 @ 23:32:07 Sessions 1 Manual Loads 0 Difficulty Rogue Special Mode None Game No. 44 Rogue 44 Adventurer 0 Explorer 0 Win Type - Total 0 Types 0/0/0/0/0/0/0/0/0/0 Lore% 24 Gallery% 15 Achievement% 17 Wizard Run 0 Options --------- Layout 2 ASCII 0 Keyboard 0 Movement Mouse Keybinds 0 Fullscreen 1 Font 24/Smallcaps Map View 50x44 Zoom Use 0% Tactical HUD 1 Map Filters NONE Filters NONE Steam 1 RUN: 87712e16-3f39-4b18-8a9c-b5575eb3e756